fUSD/lending_fUSD_20250117
["ID","MTS","AMOUNT","RATE_DAILY","PERIOD"]
[349256755,1737079832571,-500.0,0.00024932,2]
[349256756,1737079832580,-1000.0,0.00025387,2]
[349256757,1737079832589,-420.0,0.00025619,2]
[349256758,1737079832599,-500.0,0.00025781,2]
[349256759,1737079832608,-1612.0,0.00026,3]
[349256760,1737079832619,-672.84,0.0002601,120]
[349256761,1737079832628,-250.0,0.00026018,2]
[349256762,1737079832637,-350.45,0.00026023,2]
[349256763,1737079832651,-500.0,0.000261,30]
[349256764,1737079832661,-250.0,0.00026136,2]
[349256765,1737079832670,-3571.26,0.00026157,2]
[349256766,1737079832680,-300.0,0.000263,2]
[349256767,1737079832691,-848.83,0.00026392,2]
[349256768,1737079832700,-942.45,0.00026421,2]
[349256769,1737079832711,-4189.6902,0.00026873,2]
[349256770,1737079832721,-1562.1962,0.00026873,2]
[349256771,1737079832733,-1000.0,0.000269,2]
[349256772,1737079832743,-5000.0,0.000269,2]
[349256773,1737079832753,-267.3851,0.000269,3]
[349256774,1737079832763,-511.7999152,0.000269,2]
[349256775,1737079832773,-170.30473412,0.000269,2]
[349256776,1737079832783,-3336.45162419,0.000269,2]
[349256777,1737079832792,-2500.0,0.000269,2]
[349256778,1737079832802,-167.23157823,0.00026921,2]
[349256779,1737079832812,-176.9,0.00026951,2]
[349256780,1737079832821,-500.0,0.00026973,2]
[349256781,1737079832831,-500.0,0.00026973,2]
[349256782,1737079832841,-160.91315691,0.00026973,2]
[349256783,1737079832850,-504.75041543,0.00026973,2]
[349256784,1737079832859,-500.0,0.00026973,2]
[349256785,1737079832870,-160.96212902,0.00026973,2]
[349256786,1737079832879,-151.92950952,0.00026973,2]
[349256787,1737079832889,-500.0,0.00026973,2]
[349256788,1737079832899,-2540.01,0.0002699,2]
[349256789,1737079832910,-2540.01,0.0002699,2]
[349256790,1737079832921,-2540.01,0.0002699,2]
[349256791,1737079832931,-2540.01,0.0002699,2]
[349256792,1737079832940,-2540.01,0.0002699,2]
[349256794,1737079832949,-666.0,0.00026999,2]
[349256796,1737079832959,-257.98777054,0.00026999,2]
[349256797,1737079832968,-483.52041072,0.00026999,2]
[349256799,1737079832977,-410.00709781,0.00026999,2]
[349256801,1737079832987,-203.67487729,0.00026999,2]
[349256803,1737079832996,-85207.99669286,0.00027,2]
[349256805,1737079833005,-206.53625887,0.00027,120]
[349256807,1737079833015,-775138.87585798,0.00027,2]
[349256808,1737079833027,-1985.61465988,0.00027,2]
[349256809,1737079833039,-20290.0,0.00027,2]
[349256812,1737079833186,-557.66443444,0.00027,2]
[349256814,1737079833198,-125553.20087003,0.00027,2]
[349256815,1737079833210,-580.87891067,0.00027,2]
[349256816,1737079833222,-26450.41486647,0.00027,2]
[349256817,1737079833234,-3529.75708866,0.00027,2]
[349256818,1737079833246,-3910.445,0.00027,2]
[349256819,1737079833274,-16922.38899995,0.00027,2]
[349256844,1737079838381,-584.97850091,0.0002488,2]
[349256846,1737079838392,-500.0,0.0002488,2]
[349256847,1737079838404,-1072.35,0.0002488,2]
[349256848,1737079838415,-256.71554599,0.0002488,2]
[349256849,1737079838425,-9506.68445401,0.00027,2]
[349256851,1737079838438,-4173.9,0.00027,2]
[349256852,1737079838450,-811.351313,0.00027,2]
[349256853,1737079838604,-3125.94447995,0.00027,2]
[349256854,1737079838619,-6596.0,0.00027,2]
[349256855,1737079838631,-1683.0,0.00027,2]
[349256856,1737079838644,-3762.0,0.00027,2]
[349256857,1737079838659,-3668.85023824,0.00027,2]
[349256858,1737079838767,-4827.74473643,0.00027,2]
[349256859,1737079838778,-1997.81013997,0.00027,2]
[349256997,1737079840588,-11144.73241715,0.00027,2]
[349256998,1737079840600,-2537.6979685,0.00027,2]
[349256999,1737079840611,-4968.97828347,0.00027,2]
[349257000,1737079840627,-688.7108252,0.00027,2]
[349257001,1737079840639,-443.19153326,0.00027,2]
[349257002,1737079840654,-1836.6,0.00027,2]
[349257003,1737079840666,-3002.84950921,0.00027,2]
[349257004,1737079840841,-11401.6306497,0.00027,2]
[349257005,1737079840869,-89983.104243,0.00027,2]
[349257006,1737079840888,-26278.11246258,0.00027,2]
[349257007,1737079840906,-1451.43637994,0.00027,2]
[349257038,1737079843562,-490.44403302,0.00027,2]
[349257039,1737079843576,-337273.8239,0.00027,2]
[349257040,1737079843589,-44880.70010996,0.00027,2]
[349257041,1737079843602,-22962.09038652,0.00027,2]
[349257042,1737079843617,-102075.49601959,0.00027,2]
[349257043,1737079843754,-0.95085315,0.00027,2]
[349257044,1737079843766,-6461.26272572,0.00027,2]
[349257045,1737079843779,-731.25717005,0.00027,2]
[349257046,1737079843793,-1355183.4044803,0.00027,2]
[349257047,1737079843805,-71687.1882715,0.00027,2]
[349257048,1737079843817,-550.0,0.00027,2]
[349257049,1737079843828,-250.0,0.00027,4]
[349257050,1737079843839,-250.0,0.00027,4]
[349257052,1737079843850,-422.0,0.00027,4]
[349257053,1737079843861,-170.30473412,0.00027032,2]
[349257056,1737079843873,-6861.5211,0.00027046,2]
[349257058,1737079843883,-150.0,0.00027082,2]
[349257060,1737079843893,-150.0,0.00027084,2]
[349257062,1737079843904,-1000.0,0.00027088,3]
[349257064,1737079843915,-1000.0,0.00027088,3]
[349257066,1737079843926,-1000.0,0.00027088,3]
[349257068,1737079843938,-1000.0,0.00027088,3]
[349257070,1737079843949,-1000.0,0.00027088,3]
[349257072,1737079843959,-1000.0,0.00027088,3]
[349257075,1737079843971,-1000.0,0.00027088,3]
[349257077,1737079843981,-1029.0,0.00027088,3]
[349257079,1737079843992,-150.0,0.00027094,2]
[349257081,1737079844003,-1000.0,0.00027114,2]
[349257084,1737079844013,-150.0,0.00027117,2]
[349257087,1737079844023,-150.0,0.00027118,2]
[349257090,1737079844034,-150.0,0.00027118,2]
[349257093,1737079844044,-3000.0,0.0002712,2]
[349257097,1737079844055,-150.0,0.00027122,2]
[349257099,1737079844065,-150.0,0.00027123,2]
[349257101,1737079844076,-150.0,0.00027123,2]
[349257103,1737079844087,-2095.54,0.00027123,30]
[349257105,1737079844098,-1000.0,0.00027124,2]
[349257107,1737079844108,-1000.0,0.00027124,2]
[349257109,1737079844119,-1000.0,0.00027127,2]
[349257111,1737079844129,-150.0,0.0002713,2]
[349257114,1737079844139,-150.0,0.00027131,2]
[349257116,1737079844150,-150.0,0.00027132,2]
[349257118,1737079844161,-150.0,0.00027133,2]
[349257120,1737079844172,-150.0,0.00027134,2]
[349257122,1737079844182,-150.0,0.00027135,2]
[349257124,1737079844193,-150.0,0.00027135,2]
[349257126,1737079844203,-1000.0,0.00027135,2]
[349257128,1737079844214,-150.0,0.00027136,2]
[349257130,1737079844225,-1000.0,0.00027137,2]
[349257132,1737079844236,-1000.0,0.00027138,2]
[349257135,1737079844247,-150.0,0.00027138,2]
[349257137,1737079844257,-150.0,0.0002714,2]
[349257139,1737079844268,-1000.0,0.00027142,2]
[349257141,1737079844278,-983.1218,0.00027145,2]
[349257143,1737079844289,-1000.0,0.00027145,2]
[349257145,1737079844300,-150.0,0.00027147,2]
[349257147,1737079844311,-150.0,0.00027148,2]
[349257149,1737079844322,-150.0,0.00027149,2]
[349257151,1737079844332,-1000.0,0.00027151,2]
[349257153,1737079844343,-1000.0,0.00027151,2]
[349257155,1737079844354,-1000.0,0.00027157,2]
[349257157,1737079844365,-1000.0,0.00027158,2]
[349257159,1737079844377,-150.0,0.0002716,2]
[349257161,1737079844388,-150.0,0.0002716,2]
[349257164,1737079844398,-1000.0,0.00027161,2]
[349257166,1737079844409,-170.30473412,0.00027165,2]
[349257168,1737079844420,-150.0,0.00027167,2]
[349257170,1737079844430,-1000.0,0.00027168,2]
[349257172,1737079844441,-150.0,0.00027168,2]
[349257174,1737079844452,-150.0,0.00027169,2]
[349257176,1737079844462,-1000.0,0.00027174,2]
[349257178,1737079844473,-1000.0,0.00027175,2]
[349257180,1737079844484,-150.0,0.00027175,2]
[349257182,1737079844495,-150.0,0.00027176,2]
[349257184,1737079844505,-150.0,0.00027176,2]
[349257186,1737079844516,-150.37541711,0.00027176,2]
[349257188,1737079844527,-150.0,0.00027176,2]
[349257190,1737079844537,-150.0,0.00027176,2]
[349257192,1737079844548,-150.0,0.00027177,2]
[349257194,1737079844559,-150.0,0.00027179,2]
[349257196,1737079844570,-150.0,0.00027181,2]
[349257198,1737079844580,-1000.0,0.00027181,2]
[349257200,1737079844591,-150.0,0.00027181,2]
[349257202,1737079844601,-150.0,0.00027181,2]
[349257205,1737079844612,-150.0,0.00027182,2]
[349257207,1737079844625,-150.0,0.00027182,2]
[349257209,1737079844635,-3445.10427765,0.00027183,2]
[349257211,1737079844647,-150.0,0.00027183,2]
[349257213,1737079844666,-150.0,0.00027183,2]
[349257215,1737079844678,-150.0,0.00027185,2]
[349257217,1737079844690,-1000.0,0.00027185,2]
[349257219,1737079844709,-1000.0,0.00027188,2]
[349257221,1737079844719,-15200.23050186,0.00027189,2]
[349257224,1737079844732,-530.0724,0.00027189,2]
[349257226,1737079844743,-1054.6523234,0.00027191,2]
[349257228,1737079844754,-150.0,0.00027192,2]
[349257230,1737079844765,-2644.29984331,0.00027193,2]
[349257232,1737079844775,-1000.0,0.00027194,2]
[349257234,1737079844785,-150.0,0.00027195,2]
[349257236,1737079844796,-150.0,0.00027196,2]
[349257238,1737079844807,-1000.0,0.00027196,2]
[349257240,1737079844818,-1000.0,0.00027197,2]
[349257243,1737079844828,-592.42586081,0.00027197,2]
[349257245,1737079844839,-1000.0,0.00027197,2]
[349257247,1737079844850,-150.0,0.00027197,2]
[349257249,1737079844860,-1491.08541081,0.00027197,2]
[349257251,1737079844872,-1491.08541081,0.00027198,2]
[349257253,1737079844883,-29459.55435937,0.00027198,2]
[349257255,1737079844894,-150.0,0.000272,2]
[349257258,1737079844904,-288.40673157,0.000272,44]
[349257260,1737079844915,-150.0,0.00027201,2]
[349257262,1737079844928,-150.0,0.00027201,2]
[349257264,1737079844939,-150.0,0.00027201,2]
[349257266,1737079844951,-150.0,0.00027202,2]
[349257268,1737079844962,-15200.23050186,0.00027203,2]
[349257271,1737079844973,-1000.0,0.00027203,2]
[349257273,1737079844986,-150.0,0.00027205,2]
[349257275,1737079844996,-150.0,0.00027205,2]
[349257277,1737079845006,-150.0,0.00027207,2]
[349257279,1737079845015,-1054.6523234,0.00027208,2]
[349257281,1737079845025,-150.0,0.0002721,2]
[349257283,1737079845035,-150.0,0.00027212,2]
[349257285,1737079845044,-150.0,0.00027212,2]
[349257287,1737079845054,-200.0,0.00027213,2]
[349257289,1737079845064,-150.0,0.00027214,2]
[349257320,1737079845440,-150.0,0.00027216,2]
[349257323,1737079845459,-325.7487105,0.00027216,2]
[349257325,1737079845474,-3445.10427765,0.00027217,2]
[349257327,1737079845484,-29459.55435937,0.00027221,2]
[349257329,1737079845493,-1054.6523234,0.00027221,2]
[349257331,1737079845502,-150.0,0.00027222,2]
[349257333,1737079845511,-29459.55435937,0.00027223,2]
[349257335,1737079845521,-150.0,0.00027223,2]
[349257337,1737079845530,-150.0,0.00027223,2]
[349257339,1737079845540,-200.0,0.00027224,2]
[349257341,1737079845549,-1000.0,0.00027226,2]
[349257343,1737079845558,-150.0,0.00027227,2]
[349257345,1737079845568,-1000.0,0.00027232,2]
[349257347,1737079845577,-1491.0854108,0.00027232,2]
[349257349,1737079845587,-1054.6523234,0.00027233,2]
[349257351,1737079845596,-150.0,0.00027234,2]
[349257353,1737079845605,-3445.10427765,0.00027234,2]
[349257355,1737079845614,-1000.0,0.00027235,2]
[349257357,1737079845626,-150.0,0.00027236,2]
[349257359,1737079845635,-1000.0,0.00027236,2]
[349257361,1737079845644,-15200.23050186,0.00027237,2]
[349257363,1737079845658,-1000.0,0.00027237,2]
[349257365,1737079845667,-150.0,0.00027238,2]
[349257367,1737079845676,-1000.0,0.00027239,2]
[349257369,1737079845685,-150.0,0.0002724,2]
[349257371,1737079845696,-1000.0,0.00027241,2]
[349257373,1737079845705,-150.0,0.00027242,2]
[349257375,1737079845715,-1000.0,0.00027242,2]
[349257377,1737079845725,-150.0,0.00027244,2]
[349257379,1737079845736,-1000.0,0.00027244,2]
[349257381,1737079845746,-150.0,0.00027244,2]
[349257383,1737079845756,-1054.65232339,0.00027244,2]
[349257385,1737079845765,-1054.65232339,0.00027245,2]
[349257387,1737079845774,-150.0,0.00027245,2]
[349257389,1737079845783,-150.0,0.00027246,2]
[349257391,1737079845792,-150.0,0.00027246,2]
[349257393,1737079845801,-150.0,0.00027246,2]
[349257395,1737079845811,-200.0,0.00027247,2]
[349257397,1737079845820,-200.0,0.00027247,2]
[349257399,1737079845830,-150.0,0.00027248,2]
[349257401,1737079845839,-150.0,0.00027251,2]
[349257403,1737079845848,-150.0,0.00027251,2]
[349257404,1737079845857,-15200.23050186,0.00027253,2]
[349257406,1737079845866,-1491.0854108,0.00027253,2]
[349257407,1737079845878,-1000.0,0.00027255,2]
[349257409,1737079845887,-150.0,0.00027255,2]
[349257411,1737079845896,-150.0,0.00027256,2]
[349257413,1737079845905,-150.0,0.00027257,2]
[349257415,1737079845914,-1054.6523234,0.00027257,2]
[349257417,1737079845924,-150.0,0.00027258,2]
[349257419,1737079845934,-150.0,0.00027259,2]
[349257421,1737079845945,-150.0,0.00027259,2]
[349257423,1737079845954,-542.87,0.0002726,2]
[349257425,1737079845963,-438.08,0.0002726,2]
[349257427,1737079845972,-438.08,0.0002726,2]
[349257429,1737079845981,-876.09,0.0002726,2]
[349257431,1737079845991,-150.0,0.00027262,2]
[349257433,1737079846000,-16058.96402284,0.00027262,2]
[349257435,1737079846009,-1000.0,0.00027263,2]
[349257437,1737079846020,-150.0,0.00027264,2]
[349257439,1737079846029,-150.0,0.00027265,2]
[349257441,1737079846038,-200.0,0.00027265,2]
[349257443,1737079846048,-150.0,0.00027266,2]
[349257445,1737079846057,-150.0,0.00027266,2]
[349257447,1737079846067,-150.0,0.00027269,2]
[349257449,1737079846076,-150.0,0.00027269,2]
[349257451,1737079846085,-150.0,0.00027269,2]
[349257453,1737079846095,-150.0,0.0002727,2]
[349257455,1737079846104,-183.05659371,0.0002727,2]
[349257457,1737079846113,-1710.60704785,0.00027272,10]
[349257459,1737079846124,-1000.0,0.00027272,2]
[349257461,1737079846134,-1491.0854108,0.00027272,2]
[349257463,1737079846143,-3445.10427765,0.00027273,2]
[349257465,1737079846152,-2644.29984331,0.00027274,2]
[349257467,1737079846162,-150.0,0.00027276,2]
[349257469,1737079846171,-150.0,0.00027277,2]
[349257471,1737079846180,-16058.96402284,0.00027278,2]
[349257472,1737079846190,-1054.65232339,0.00027278,2]
[349257474,1737079846199,-150.0,0.00027279,2]
[349257476,1737079846209,-150.0,0.00027279,2]
[349257478,1737079846219,-200.0,0.0002728,2]
[349257480,1737079846228,-1000.0,0.00027282,2]
[349257482,1737079846237,-16058.96402284,0.00027284,2]
[349257484,1737079846246,-150.0,0.00027285,2]
[349257487,1737079846255,-1491.0854108,0.00027285,2]
[349257490,1737079846265,-16058.96402284,0.00027286,2]
[349257493,1737079846274,-160.4652837,0.00027287,2]
[349257496,1737079846283,-150.0,0.00027287,2]
[349257499,1737079846292,-16058.96402284,0.0002729,2]
[349257501,1737079846301,-1000.0,0.00027291,2]
[349257503,1737079846311,-15200.23050186,0.00027293,2]
[349257505,1737079846320,-150.0,0.00027293,2]
[349257507,1737079846329,-150.0,0.00027293,2]
[349257509,1737079846338,-150.0,0.00027294,2]
[349257511,1737079846347,-1000.0,0.00027294,2]
[349257513,1737079846356,-802.6925,0.00027297,2]
[349257514,1737079846366,-167.23157823,0.00027297,2]
[349257517,1737079846378,-170.30473412,0.00027297,2]
[349257518,1737079846387,-20455.74556963,0.00027297,2]
[349257520,1737079846396,-652.21797186,0.00027297,2]
[349257522,1737079846405,-191.54141768,0.00027297,2]
[349257523,1737079846414,-636.66107384,0.00027297,2]
[349257525,1737079846424,-1000.0,0.00027298,2]
[349257527,1737079846432,-150.0,0.00027298,2]
[349257528,1737079846442,-4585.41,0.000273,7]
[349257530,1737079846451,-201.0,0.000273,60]
[349257532,1737079846460,-847.93094083,0.000273,2]
[349257533,1737079846469,-1054.65232339,0.00027301,2]
[349257535,1737079846479,-150.0,0.00027302,2]
[349257537,1737079846487,-150.0,0.00027302,2]
[349257539,1737079846496,-150.0,0.00027303,2]
[349257541,1737079846506,-16058.96402284,0.00027304,2]
[349257542,1737079846515,-150.0,0.00027305,2]
[349257544,1737079846524,-150.0,0.00027306,2]
[349257546,1737079846534,-1000.0,0.00027306,2]
[349257548,1737079846543,-150.0,0.00027308,2]
[349257549,1737079846553,-29459.55435937,0.00027308,2]
[349257551,1737079846562,-150.0,0.00027309,2]
[349257553,1737079846572,-1491.08541081,0.0002731,2]
[349257555,1737079846581,-150.0,0.0002731,2]
[349257557,1737079846591,-150.0,0.00027314,2]
[349257558,1737079846600,-150.0,0.00027314,2]
[349257560,1737079846610,-1000.0,0.00027315,2]
[349257562,1737079846620,-150.0,0.00027318,2]
[349257564,1737079846629,-3445.10427765,0.0002732,2]
[349257565,1737079846639,-150.0,0.00027321,2]
[349257567,1737079846648,-1000.0,0.00027321,2]
[349257569,1737079846661,-150.0,0.00027323,2]
[349257571,1737079846670,-200.0,0.00027323,2]
[349257573,1737079846679,-1000.0,0.00027324,2]
[349257574,1737079846688,-150.0,0.00027324,2]
[349257576,1737079846698,-150.0,0.00027325,2]
[349257578,1737079846711,-1054.6523234,0.00027327,2]
[349257579,1737079846720,-2644.29984331,0.00027328,2]
[349257581,1737079846729,-1000.0,0.00027328,2]
[349257582,1737079846738,-1000.0,0.00027328,2]
[349257583,1737079846747,-29459.55435937,0.00027328,2]
[349257584,1737079846756,-150.0,0.0002733,2]
[349257585,1737079846766,-1491.08541081,0.0002733,2]
[349257586,1737079846774,-150.0,0.00027331,2]
[349257587,1737079846784,-3445.10427765,0.00027332,2]
[349257588,1737079846793,-1491.08541081,0.00027333,2]
[349257589,1737079846802,-150.0,0.00027333,2]
[349257590,1737079846811,-15200.23050186,0.00027334,2]
[349257591,1737079846822,-1054.65232339,0.00027334,2]
[349257592,1737079846831,-3445.10427765,0.00027335,2]
[349257593,1737079846840,-150.0,0.00027335,2]
[349257594,1737079846850,-150.0,0.00027336,2]
[349257595,1737079846860,-225.06285041,0.00027337,2]
[349257596,1737079846878,-1266.02256039,0.00027337,2]
[349257597,1737079846887,-1000.0,0.00027338,2]
[349257598,1737079846896,-1112.47743961,0.00027338,2]
[349257599,1737079846916,-406.25499922,0.00027338,2]
[349257600,1737079846928,-13681.49806303,0.00027338,2]
[349257602,1737079846938,-150.0,0.00027339,2]
[349257603,1737079846947,-150.0,0.0002734,2]
[349257604,1737079846956,-150.0,0.00027341,2]
[349257605,1737079846965,-1000.0,0.00027343,2]
[349257606,1737079846975,-2644.29984331,0.00027345,2]
[349257607,1737079846984,-150.0,0.00027345,2]
[349257608,1737079846993,-150.0,0.00027345,2]
[349257609,1737079847003,-150.0,0.00027346,2]
[349257610,1737079847012,-1000.0,0.00027346,2]
[349257611,1737079847021,-1000.0,0.00027347,2]
[349257612,1737079847031,-150.0,0.00027348,2]
[349257613,1737079847041,-150.0,0.00027348,2]
[349257614,1737079847051,-150.0,0.00027348,2]
[349257615,1737079847061,-1000.0,0.00027349,2]
[349257616,1737079847070,-3445.10427765,0.00027352,2]
[349257617,1737079847079,-150.0,0.00027353,2]
[349257618,1737079847089,-2644.29984331,0.00027354,2]
[349257619,1737079847098,-1491.0854108,0.00027354,2]
[349257620,1737079847107,-150.0,0.00027357,2]
[349257621,1737079847116,-150.0,0.00027358,2]
[349257622,1737079847128,-1491.08541081,0.00027359,2]
[349257623,1737079847137,-1491.0854108,0.00027363,2]
[349257624,1737079847147,-29459.55435937,0.00027364,2]
[349257625,1737079847156,-150.0,0.00027364,2]
[349257626,1737079847165,-202.011711,0.00027368,12]
[349257627,1737079847175,-2644.29984331,0.00027369,2]
[349257628,1737079847184,-183.46582188,0.00027369,2]
[349257629,1737079847193,-92185.0,0.0002737,2]
[349257630,1737079847202,-1033.0,0.0002737,2]
[349257631,1737079847212,-500.0,0.00027373,2]
[349257632,1737079847221,-500.64404719,0.00027373,2]
[349257633,1737079847230,-315.18812744,0.00027373,2]
[349257634,1737079847240,-500.0,0.00027373,2]
[349257635,1737079847250,-500.63630899,0.00027373,2]
[349257636,1737079847260,-151.8132122,0.00027373,2]
[349257637,1737079847269,-151.83896111,0.00027373,2]
[349257638,1737079847279,-150.91540918,0.00027373,2]
[349257639,1737079847289,-486.26616919,0.00027373,2]
[349257640,1737079847297,-500.0,0.00027373,2]
[349257641,1737079847307,-500.0,0.00027373,2]
[349257642,1737079847316,-151.7566784,0.00027373,2]
[349257643,1737079847325,-156.91776585,0.00027373,2]
[349257644,1737079847334,-500.0,0.00027373,2]
[349257645,1737079847344,-517.09340777,0.00027373,2]
[349257646,1737079847354,-500.0,0.00027373,2]
[349257647,1737079847363,-516.00515177,0.00027373,2]
[349257648,1737079847375,-500.0,0.00027373,2]
[349257649,1737079847384,-206.5332918,0.00027373,2]
[349257650,1737079847393,-323.37523146,0.00027373,2]
[349257651,1737079847402,-151.81322113,0.00027373,2]
[349257652,1737079847412,-500.0,0.00027373,2]
[349257653,1737079847421,-16058.96402284,0.00027373,2]
[349257654,1737079847431,-150.0,0.00027374,2]
[349257655,1737079847441,-1054.6523234,0.00027374,2]
[349257656,1737079847450,-1000.0,0.00027377,2]
[349257657,1737079847460,-211.011711,0.00027378,13]
[349257658,1737079847470,-9785.5158302,0.00027378,2]
[349257659,1737079847480,-9896.9863116,0.00027378,2]
[349257660,1737079847489,-3468.6763949,0.00027378,2]
[349257661,1737079847499,-3508.1893888,0.00027378,2]
[349257662,1737079847509,-2332.2060536,0.00027378,2]
[349257663,1737079847518,-2250.3680603,0.00027378,2]
[349257664,1737079847527,-29459.55435937,0.00027378,2]
[349257665,1737079847536,-1054.65232339,0.0002738,2]
[349257666,1737079847546,-1491.08541081,0.00027382,2]
[349257667,1737079847555,-1491.0854108,0.00027382,2]
[349257668,1737079847564,-15200.23050186,0.00027384,2]
[349257669,1737079847574,-2644.29984331,0.00027384,2]
[349257670,1737079847583,-150.0,0.00027384,2]
[349257671,1737079847592,-150.0,0.00027384,2]
[349257672,1737079847602,-16058.96402284,0.00027384,2]
[349257673,1737079847611,-150.0,0.00027386,2]
[349257674,1737079847623,-2644.29984331,0.00027387,2]
[349257675,1737079847632,-150.0,0.00027387,2]
[349257676,1737079847642,-1000.0,0.00027388,2]
[349257677,1737079847654,-1054.6523234,0.00027391,2]
[349257678,1737079847663,-1000.0,0.00027392,2]
[349257679,1737079847672,-1054.65232339,0.00027392,2]
[349257680,1737079847682,-29459.55435937,0.00027394,2]
[349257681,1737079847691,-500.0,0.00027396,2]
[349257682,1737079847700,-1000.0,0.00027396,2]
[349257683,1737079847710,-500.0,0.00027396,2]
[349257684,1737079847719,-502.03355078,0.00027397,3]
[349257685,1737079847730,-505.09785428,0.00027397,3]
[349257686,1737079847740,-501.91199235,0.00027397,3]
[349257687,1737079847749,-640.42588045,0.00027397,3]
[349257688,1737079847759,-198.33846054,0.00027397,3]
[349257689,1737079847768,-150.0,0.00027397,30]
[349257690,1737079847778,-515.26243142,0.00027397,3]
[349257691,1737079847787,-500.0,0.00027397,3]
[349257692,1737079847796,-500.0,0.00027397,3]
[349257693,1737079847805,-500.0,0.00027397,3]
[349257694,1737079847815,-500.0,0.00027397,3]
[349257695,1737079847824,-500.0,0.00027397,3]
[349257696,1737079847834,-500.0,0.00027397,3]
[349257697,1737079847843,-500.0,0.00027397,3]
[349257698,1737079847852,-505.02112668,0.00027397,3]
[349257699,1737079847862,-504.85170916,0.00027397,3]
[349257700,1737079847876,-2000.0,0.00027397,2]
[349257701,1737079847885,-200.0,0.00027397,2]
[349257702,1737079847895,-2319.6,0.00027397,3]
[349257703,1737079847905,-2319.6,0.00027397,3]
[349257704,1737079847916,-2319.6,0.00027397,3]
[349257705,1737079847926,-2319.6,0.00027397,3]
[349257706,1737079847937,-2319.6,0.00027397,3]
[349257707,1737079847948,-2319.6,0.00027397,3]
[349257708,1737079847958,-2319.6,0.00027397,3]
[349257709,1737079847968,-2319.6,0.00027397,3]
[349257710,1737079847977,-2319.6,0.00027397,3]
[349257711,1737079847987,-2319.6,0.00027397,3]
[349257712,1737079847996,-2319.6,0.00027397,3]
[349257713,1737079848006,-2319.6,0.00027397,3]
[349257714,1737079848015,-2319.6,0.00027397,3]
[349257715,1737079848024,-2319.6,0.00027397,3]
[349257716,1737079848033,-2319.6,0.00027397,3]
[349257717,1737079848043,-2319.6,0.00027397,3]
[349257718,1737079848052,-2319.6,0.00027397,3]
[349257719,1737079848062,-2319.6,0.00027397,3]
[349257720,1737079848071,-2319.6,0.00027397,3]
[349257721,1737079848080,-2319.6,0.00027397,3]
[349257722,1737079848090,-2319.6,0.00027397,3]
[349257723,1737079848099,-2319.6,0.00027397,3]
[349257724,1737079848109,-2319.6,0.00027397,3]
[349257725,1737079848119,-2319.66805977,0.00027397,3]
[349257726,1737079848130,-500.0,0.00027397,3]
[349257727,1737079848141,-500.0,0.00027397,3]
[349257728,1737079848151,-500.0,0.00027397,3]
[349257729,1737079848161,-500.0,0.00027397,3]
[349257730,1737079848171,-500.0,0.00027397,3]
[349257731,1737079848181,-500.0,0.00027397,3]
[349257732,1737079848191,-500.0,0.00027397,3]
[349257733,1737079848200,-500.0,0.00027397,3]
[349257734,1737079848210,-500.0,0.00027397,3]
[349257735,1737079848219,-500.0,0.00027397,3]
[349257736,1737079848228,-500.0,0.00027397,3]
[349257737,1737079848238,-500.0,0.00027397,3]
[349257738,1737079848247,-164.09752324,0.00027397,3]
[349257739,1737079848256,-500.0,0.00027397,3]
[349257740,1737079848266,-500.0,0.00027397,3]
[349257741,1737079848276,-500.0,0.00027397,3]
[349257742,1737079848285,-500.0,0.00027397,3]